{"text_format":"3","workbook":"xlsx","n_sheets":7,"sheets":["Businessplan-Finanzteil","Kapitalbedarf","Lebenshaltung","Umsatz-Rentabilität J1-Monat","Annahmen URP","Umsatz-Rentabilität 3J","Liquiditätsplan I-III"],"not_rendered":{"images":2,"external_links":1,"defined_names":20,"comments":1},"read":"whole","date_system":"1900"}

{"sheet":"Businessplan-Finanzteil","index":0,"n_rows":45,"n_cols":5,"rows_kept":45,"merged":[[22,1,22,9],[27,1,27,9],[28,1,28,9],[29,1,29,9],[30,1,30,9],[31,1,31,9],[35,1,35,9],[39,1,39,9]]}
[]
[]
[]
[]
[]
["Businessplan:",{"$nulls":3},"Finanzplan"]
[]
[]
["Ein umfassendes Angebot an bezuschussten Seminaren zum Thema \"Existenzgründung\" finden Sie unter:"]
["https://akademie.muenchen.ihk.de/akademie/inhalte/angebot/-seminare-existenzgruendung.html"]
[]
[]
[]
["Kapitalbedarfsplan"]
[]
[null,"Der Kapitalbedarfsplan dient der Ermittlung von Finanzierungskosten für den Start Ihres Vorhabens."]
[null,"Eingebrachte Sacheinlagen (Geräte, Firmenwagen etc.) sollten ebenfalls aufgelistet werden,"]
[null,"da sie Vermögenswerte Ihres Unternehmens darstellen. "]
[null,"Der Kapital- und Finanzbedarf wird unterteilt in langfristige Investitionen, mittelfristige Kosten und Gründungskosten."]
[]
["Lebenshaltungskosten"]
[]
[null,"Die Aufstellung der Kosten für den privaten Lebensunterhalt ist zur Berechnung des erforderlichen Mindestgewinnes nötig,\nden Ihr Unternehmen mittelfristig ausschütten sollte (max. 1-3 Jahre nach Gründung)."]
[]
[]
["Umsatz- und Rentabilitätsplan"]
[]
[null,"Die Umsatz- und Rentabilitätsplanung wird zur Beantwortung der Frage erstellt, ob sich das Geschäftsvorhaben (kurz- bzw. mittelfristig) trägt."]
[null,"Die Planung der Umsatzerlöse sowie der Fixkosten und der variablen Kosten sollte für die ersten drei Jahre erstellt werden (mindestens zwei ganze Planungsjahre sowie das \"angebrochene\" Rumpfjahr (falls Sie Ihre selbständige Tätigkeit nicht  zum 1.1. aufnehmen)."]
[null,"Mindestens im ersten Jahr sollten Sie auf Monatsbasis planen. "]
[null,"Wichtig für die spätere Abweichungsanalyse sind Erläuterungen zu den Annahmen, auf deren die Planzahlen errechnet wurden."]
[null,"Sobald Ist-Zahlen vorliegen, z.B. in Form einer Betriebswirtschaftlichen Auswertung (BWA der DATEV o.ä.), ist ein monatlicher Soll-/Ist-Vergleich (Abweichungsanalyse) zu erstellen. So lassen sich \"falsche\" Planungsprämissen schnell und übersichtlich identifizieren und ggfs. Korrekturmaßnahmen ableiten)."]
[]
["   Break-even-Berechnung"]
[]
[null,"Die Break-Even-Berechnung dient der Berechnung/Darstellung, ab wann die betrieblichen Kosten einschl. der Kosten des Lebensunterhalts/Gehalts gedeckt sind."]
[]
["Liquiditätsplan"]
[]
[null,"Auch wenn ein Geschäftskonzept grundsätzlich rentabel ist, kann es im Verlauf der ersten Jahre immer wieder zu Liquiditätsengpässen (z.B. durch Vorfinanzierung von Material, Außenstände, USt-Zahllasten etc.) kommen. Der Liquiditätsplan dient der Übersicht zur Liquiditätsentwicklung im ersten Jahr. Hier werden die tatsächlichen Termine  für die Zahlungsein- und -ausgänge berücksichtigt. Erst nach Erstellung eines Liquiditätsplans kann eine Aussage zur Zahlungsfähigkeit eines Unternehmens im Zeitverlauf gemacht werden. Der Liquiditätsplan sollte laufend aktualisiert werden. "]
[]
[]
[]
["IHK München und Oberbayern"]
["Stand: Juni 2018"]

{"sheet":"Kapitalbedarf","index":1,"n_rows":49,"n_cols":7,"rows_kept":49,"merged":[[3,0,3,1],[4,0,4,1],[7,0,7,1],[8,0,8,1],[9,0,9,1],[14,4,15,8],[16,0,16,1],[20,0,20,1],[27,0,27,1],[29,0,29,1]]}
["Kapitalbedarfsplan"]
[]
["Startinvestitionen (netto)",null,"Betrag in €",null,"Achtung! Nur gelbe Felder sind auszufüllen!"]
["Langfristige Investitionen"]
["Grundstück/Gebäude",null,{"v":0,"d":"0 €"}]
["Kaufpreis/Übernahmepreis",null,{"v":0,"d":"0 €"}]
["Bau- und Umbaumaßnahmen",null,{"v":0,"d":"0 €"},null,"AfA Jahre","EUR/\nJahr","EUR/\nMonat"]
["Maschinen/Geräte",null,{"v":0,"d":"0 €"},null,8,{"$f":"C8/E8","v":{"v":0,"d":"0 €"}},{"$f":"F8/12","v":{"v":0,"d":"0 €"}}]
["Einrichtung/Büroausstattung",null,{"v":0,"d":"0 €"},null,10,{"$f":"C9/E9","v":{"v":0,"d":"0 €"}},{"$f":"F9/12","v":{"v":0,"d":"0 €"}}]
["Firmenfahrzeug",null,{"v":0,"d":"0 €"},null,6,{"$f":"C10/E10","v":{"v":0,"d":"0 €"}},{"$f":"F10/12","v":{"v":0,"d":"0 €"}}]
["PC/Software",null,{"v":0,"d":"0 €"},null,1,{"$f":"C11/E11","v":{"v":0,"d":"0 €"}},{"$f":"F11/12","v":{"v":0,"d":"0 €"}}]
["Patent-/Lizenz-/Franchisegebühr/Markeneintragung",null,{"v":0,"d":"0 €"},null,3,{"$f":"C12/E12","v":{"v":0,"d":"0 €"}},{"$f":"F12/12","v":{"v":0,"d":"0 €"}}]
["Mittel-und kurzfristige Investitionen",{"$nulls":3},"Summe AfA ",{"$f":"SUM(F8:F12)","v":{"v":0,"d":"0 €"}},{"$f":"SUM(G8:G12)","v":{"v":0,"d":"0 €"}}]
["Material- und Warenlager",null,{"v":0,"d":"0 €"},null,"Infos zur Abschreibungsdauer: "]
["Kosten für übernommenes Warenlager",null,{"v":0,"d":"0 €"},null,"https://www.ihk-muenchen.de/de/Service/Recht-und-Steuern/Steuerrecht/Einkommensteuer-K%C3%B6rperschaftsteuer/AfA-Tabelle/"]
["Rohstoffe, Hilfs- und Betriebsstoffe",null,{"v":0,"d":"0 €"}]
["Geringfügige Wirtschaftsgüter Sammelposten",null,{"v":0,"d":"0 €"}]
["Summe Startinvestitionen 1",null,{"$f":"SUM(C5:C17)","v":{"v":0,"d":"0 €"}}]
[]
["Sonstiger Kapitalbedarf",null,"Betrag in €"]
["Gründungskosten",null,{"$f":"SUM(C22:C24)","v":{"v":0,"d":"0 €"}}]
["Gewerbeanmeldung",null,{"v":0,"d":"0 €"}]
["Anmeldung/Genehmigungen",null,{"v":0,"d":"0 €"}]
["Eintrag ins Handelsregister",null,{"v":0,"d":"0 €"}]
["Notar/Beratung/Rechtsanwalt",null,{"v":0,"d":"0 €"}]
["Kautionen/Stellplatzabgabe",null,{"v":0,"d":"0 €"}]
["Aus- und Fortbildungskosten",null,{"v":0,"d":"0 €"}]
["Markteinführungskosten",null,{"v":0,"d":"0 €"}]
["Vorfinanzierung USt aus Startinvestitionen 2",null,{"$f":"C18*0.19","v":{"v":0,"d":"0 €"}}]
["Kosten für Anlaufphase/Betriebsmittelbedarf 3",null,{"v":0,"d":"0 €"}]
["Summe sonstiger Kapitalbedarf",null,{"$f":"SUM(C22:C30)","v":{"v":0,"d":"0 €"}}]
[]
["Gesamtkapitalbedarf",null,{"$f":"C18+C31","v":0}]
["abzüglich vorhandenes Eigenkapital",null,{"v":0,"d":"0 €"}]
["Benötigtes Fremdkapital",null,{"$f":"IF(C33-C34<0,0,C33-C34)","v":{"v":0,"d":"0 €"}},null,null,"Zinssatz: ",{"v":0,"d":"0.00%"}]
[{"$nulls":5},"Zinsen/Mon.",{"$f":"C35*G35/12","v":0}]
[{"$nulls":5},"Laufzeit ",0]
[{"$nulls":5},"tilg.freie Jahre",0]
["Erläuterungen",{"$nulls":4},"mon. Tilg.",0]
["1 Startinvestitionen werden in der Regel über Investitionskredite finanziert."]
["2 Zur Umsatzsteuer und Vorsteuer siehe IHK-Merkblatt Steuern für Existenzgründer: https://www.ihk-muenchen.de/de/Service/Recht-und-Steuern/Steuerrecht/Sonstiges-Steuerrecht/Steuertipps-f%C3%BCr-Existenzgr%C3%BCnder/"]
["3 Entsprechende Kosten sind vorzufinanzieren. Hier aus dem Liquiditätsplan den Betriebsmittelbedarf entnehmen. Diese Kosten sollten über eine Betriebsmittellinie finanziert werden."]
["   Alternativ als Faustregel ansetzen: Zur Deckung der laufenden Kosten des Betriebes eine Reserve in Höhe von 3 monatlichen Betriebskosten einkalkulieren."]
[]
[]
[]
["Die vorliegende Übersicht orientiert sich an den Anforderungen der LfA/KfW und anderer Kreditinstitute. Details unter"]
["http://lfa.de/website/de/foerderangebote/gruendung/was/index.php"]
["https://www.kfw.de/inlandsfoerderung/Unternehmen/Gr%C3%BCnden-Erweitern/"]

{"sheet":"Lebenshaltung","index":2,"n_rows":48,"n_cols":6,"rows_kept":48}
["Lebenshaltungskosten / Berechnung des Mindestgewinns"]
["(Berechnungshilfe)"]
[]
[null,null,"im Monat",null,"im Jahr ¹"]
["Wohnkosten"]
["Mietkosten incl. Heizung",null,{"v":0,"d":"0 €"},null,{"$f":"C6*12","v":{"v":0,"d":"0 €"}}]
["Strom, Wasser, Gas",null,{"v":0,"d":"0 €"},null,{"$f":"C7*12","v":{"v":0,"d":"0 €"}}]
["Telefon",null,{"v":0,"d":"0 €"},null,{"$f":"C8*12","v":{"v":0,"d":"0 €"}}]
[]
["Soziale Absicherung"]
["Krankenversicherung",null,{"v":0,"d":"0 €"},null,{"$f":"C11*12","v":{"v":0,"d":"0 €"}}]
["Rentenversicherung/Altersvorsorge",null,{"v":0,"d":"0 €"},null,{"$f":"C12*12","v":{"v":0,"d":"0 €"}}]
["Freiwillige Arbeitslosenversicherung",null,{"v":0,"d":"0 €"},null,{"$f":"C13*12","v":{"v":0,"d":"0 €"}}]
["Andere Versicherungen",null,{"v":0,"d":"0 €"},null,{"$f":"C14*12","v":{"v":0,"d":"0 €"}}]
[]
["Sonstige Verpflichtungen"]
["Private Kredite",null,{"v":0,"d":"0 €"},null,{"$f":"C17*12","v":{"v":0,"d":"0 €"}}]
["Bausparverträge",null,{"v":0,"d":"0 €"},null,{"$f":"C18*12","v":{"v":0,"d":"0 €"}}]
["Sonstiges (z.B. Unterhalt)",null,{"v":0,"d":"0 €"},null,{"$f":"C19*12","v":{"v":0,"d":"0 €"}}]
[]
["Mobilitätskosten"]
["Kfz-Steuer, Kfz-Versicherung",null,{"v":0,"d":"0 €"},null,{"$f":"C22*12","v":{"v":0,"d":"0 €"}}]
["Benzin, Reparatur,Pflege",null,{"v":0,"d":"0 €"},null,{"$f":"C23*12","v":{"v":0,"d":"0 €"}}]
["öffentliche Verkehrsmittel etc.",null,{"v":0,"d":"0 €"},null,{"$f":"C24*12","v":{"v":0,"d":"0 €"}}]
[]
["Lebensunterhalt"]
["Lebensmittel, Kleidung, Freizeit",null,{"v":0,"d":"0 €"},null,{"$f":"C27*12","v":{"v":0,"d":"0 €"}}]
["Hausrat, Reparaturen",null,{"v":0,"d":"0 €"},null,{"$f":"C28*12","v":{"v":0,"d":"0 €"}}]
["Bildung/Unterhaltung",null,{"v":0,"d":"0 €"},null,{"$f":"C29*12","v":{"v":0,"d":"0 €"}}]
[]
["Rücklagen (Urlaub, Krankheit etc.)",null,{"v":0,"d":"0 €"},null,{"$f":"C31*12","v":{"v":0,"d":"0 €"}}," "]
["sonstige variable Kosten",null,{"v":0,"d":"0 €"},null,{"$f":"C32*12","v":{"v":0,"d":"0 €"}}]
[]
["Summe private Ausgaben",null,{"$f":"SUM(C6:C32)","v":{"v":0,"d":"0 €"}},null,{"$f":"SUM(E6:E32)","v":{"v":0,"d":"0 €"}}]
["plus Einkommensteuer 2",null,{"$f":"E35/12","v":{"v":0,"d":"0 €"}},null,0]
[]
["Gesamtsumme= Mindestgewinn",null,{"$f":"SUM(C34:C35)","v":{"v":0,"d":"0 €"}},null,{"$f":"E34+E35","v":{"v":0,"d":"0 €"}}]
[]
["Erläuterungen"]
["1 Bei mehrjähriger Planung sollten Sie pro Jahr rd. 3% Erhöhung berücksichtigen (Ausgleich allgemeiner Kostensteigerungen)"]
["2 Zur Berechnung siehe z.B. unter www.bmf-steuerrechner.de"]
[]
["Hinweis zur Berechnung des Mindestgewinns:"]
["Bei Einzelunternehmen/Personengesellschaften sollte mindestens dieser Betrag (pro Gesellschafter)"]
["als Einkommen erwirtschaftet werden."]
["Bei Kapitalgesellschaften (z.B. GmbH, UG) sollte der Mindestgewinn gleich dem Betrag sein, den der/die Geschäftsführer "]
["als (Mindest-)Gehalt beziehen. Die Kostendeckung/Rentabilitätsschwelle des Unternehmens wäre demnach erreicht bei"]
["einem Gewinn von 0,- Euro!"]

{"sheet":"Umsatz-Rentabilität J1-Monat","index":3,"n_rows":58,"n_cols":15,"rows_kept":58,"merged":[[3,2,4,2]]}
["Umsatz- und Rentabilitätsplanung (1. Jahr, monatlich)"]
[]
[]
["Planperiode","Rechengrößen","Summe Monate\nim 1. Jahr","Jahr 1"]
["Alle Beträge in € (netto, ohne USt)",null,null,"Jan","Feb.","Mrz","Apr","Mai","Jun","Jul","Aug","Sep","Okt","Nov","Dez"]
["Umsatzerlöse Geschäftsfeld 1",null,{"$f":"SUM(D6:O6)","v":0},0,0,0,0,0,0,0,0,0,0,0,0]
["Umsatzerlöse Geschäftsfeld 2",null,{"$f":"SUM(D7:O7)","v":0},0,0,0,0,0,0,0,0,0,0,0,0]
["Umsatzerlöse Geschäftsfeld 3",null,{"$f":"SUM(D8:O8)","v":0},0,0,0,0,0,0,0,0,0,0,0,0]
["Umsatzerlöse ( Summe )",null,{"$f":"SUM(C6:C8)","v":0},{"$f":"SUM(D6:D8)","v":0},0,0,0,0,0,0,0,0,0,0,0]
["Waren-/Materialeinsatz 1",{"v":0,"d":"0%"},{"$f":"SUM(D10:O10)","v":0},{"$f":"D9*$B$10","v":0},0,0,0,0,0,0,0,0,0,0,0]
["Rohertrag ",null,0,{"$f":"D9-D10","v":0},{"$f":"E9-E10","v":0},0,0,0,0,0,0,0,0,0,{"$f":"O9-O10","v":0}]
["Personalkosten 2",null,{"$f":"SUM(D12:O12)","v":0},0,0,0,0,0,0,0,0,0,0,0,0]
["Fremdleistungen",null,{"$f":"SUM(D13:O13)","v":0},0,0,0,0,0,0,0,0,0,0,0,0]
["Abschreibungen",null,{"$f":"SUM(D14:O14)","v":0},{"$f":"Kapitalbedarf!$G$13","v":0},{"$f":"Kapitalbedarf!$G$13","v":0},{"$f":"Kapitalbedarf!$G$13","v":0},{"$f":"Kapitalbedarf!$G$13","v":0},{"$f":"Kapitalbedarf!$G$13","v":0},{"$f":"Kapitalbedarf!$G$13","v":0},{"$f":"Kapitalbedarf!$G$13","v":0},{"$f":"Kapitalbedarf!$G$13","v":0},{"$f":"Kapitalbedarf!$G$13","v":0},{"$f":"Kapitalbedarf!$G$13","v":0},{"$f":"Kapitalbedarf!$G$13","v":0},{"$f":"Kapitalbedarf!$G$13","v":0}]
[" Miete einschl. Nebenkosten",null,{"$f":"SUM(D15:O15)","v":0},0,0,0,0,0,0,0,0,0,0,0,0]
["Leasing Maschinen",null,0,0,0,0,0,0,0,0,0,0,0,0,0]
["Reparaturen, Wartung",null,0,0,0,0,0,0,0,0,0,0,0,0,0]
["KFZ-Kosten: Leasing, Steuern, Versicherung",null,0,0,0,0,0,0,0,0,0,0,0,0,0]
["KFZ-Kosten: Benzin, Instandhaltung, Pflege",null,0,0,0,0,0,0,0,0,0,0,0,0,0]
["Reisekosten",null,0,0,0,0,0,0,0,0,0,0,0,0,0]
["Betriebl. Versicherungen / Beiträge",null,0,0,0,0,0,0,0,0,0,0,0,0,0]
["Telefon/Fax/Internet/Handy/Porto",null,0,0,0,0,0,0,0,0,0,0,0,0,0]
["Werbekosten, Internet, Messen, Bewirtung",null,0,0,0,0,0,0,0,0,0,0,0,0,0]
["Buchführungs- und Steuerberatungskosten",null,0,0,0,0,0,0,0,0,0,0,0,0,0]
["Rechtsanwalts- und Beratungskosten",null,0,0,0,0,0,0,0,0,0,0,0,0,0]
["Sonstige Kosten",null,0,0,0,0,0,0,0,0,0,0,0,0,0]
["Betriebskosten gesamt",null,{"$f":"SUM(C12:C26)","v":0},{"$f":"SUM(D12:D26)","v":0},0,0,0,0,0,0,0,0,0,0,0]
["Betriebsergebnis vor Zinsen+Steuern (EBIT)",null,{"$f":"SUM(D28:O28)","v":0},{"$f":"D11-D27","v":0},{"$f":"E11-E27","v":0},0,0,0,0,0,0,0,0,0,0]
["+ Zinserträge",{"v":0,"d":"0%"},0,0,0,0,0,0,0,0,0,0,0,0,0]
["./. Zinsen und ähnliche Aufwendungen",{"v":0,"d":"0%"},0,0,0,0,0,0,0,0,0,0,0,0,0]
["+ außerordentliche Erträge",null,0,0,0,0,0,0,0,0,0,0,0,0,0]
["./. außerordentliche Aufwendungen",null,0,0,0,0,0,0,0,0,0,0,0,0,0]
["Betriebsergebnis / Gewinn vor Steuern",null,0,{"$f":"D28+D29-D30+D31-D32","v":0},{"$f":"E28+E29-E30+E31-E32","v":0},0,0,0,0,0,0,0,0,0,0]
["Betriebssteuern (GewSt, KöSt) 3",null,0,0,0,0,0,0,0,0,0,0,0,0,0]
["Betriebsergebnis / Gewinn nach Steuern",null,0,{"$f":"D33-D34","v":0},{"$f":"E33-E34","v":0},0,0,0,0,0,0,0,0,0,0]
[]
["Erläuterungen"]
["1 Ermittlung in Prozent vom Umsatz; alternativ auch in absoluten Zahlen (Formel löschen)"]
["2 incl. z.B. Geschäftsführergehalt bei GmbH/UG sowie Nebenkosten und Sozialabgaben; siehe auch z.B. unter www.abgabenrechner.de"]
["3 vgl. dazu www.ihk-muenchen.de/gewerbesteuer oder www.gewerbesteuerrechner.com"]
["    Körperschaftsteuer fällt nur bei Kapitalgesellschaften (GmbH, UG, AG) an: bundeseinheitlicher Steuersatz 15 % (Stand 2018)"]
[]
[]
["Break-Even-Berechnung"]
[]
["Der Break-Even (= Gewinnschwelle) ist erreicht, sobald der Umsatz die gesamten Betriebskosten (Fixkosten und variable Kosten) deckt. "]
["Bis zum Erreichen der Gewinnschwelle müssen entstehende Verluste vorfinanziert werden. Dies ist wiederum bei der Kapitalbedarfsplanung zu berücksichtigen (=> aufsummieren und dorthin übertragen)!"]
["Bei Personengesellschaften sind die zu erwirtschaftenden Lebenshaltungskosten des Gründers nicht als Gehalt zu verbuchen und müssen in der nachfolgend aufgezeigten Berechnung noch berücksichtigt werden. Da die Darlehenstilgung oft höher als die Abschreibehöhe ist,"]
["sollte bis zum Zeitpunkt des Break Even die dargestellte Planungsrechnung auf monatlicher Basis fortgeführt werden. Im Jahr nach der Erreichung der Gewinnschwelle ist eine Jahresbetrachtung ausreichend. "]
[]
["Betriebsergebnis nach Steuern",null,{"$f":"C35","v":0},0,0,0,0,0,0,0,0,0,0,0,0]
["  - Private Lebenshaltungskosten",null,{"$f":"SUM(D52:O52)","v":0},{"$f":"Lebenshaltung!$C$37","v":0},{"$f":"Lebenshaltung!$C$37","v":0},{"$f":"Lebenshaltung!$C$37","v":0},{"$f":"Lebenshaltung!$C$37","v":0},{"$f":"Lebenshaltung!$C$37","v":0},{"$f":"Lebenshaltung!$C$37","v":0},{"$f":"Lebenshaltung!$C$37","v":0},{"$f":"Lebenshaltung!$C$37","v":0},{"$f":"Lebenshaltung!$C$37","v":0},{"$f":"Lebenshaltung!$C$37","v":0},{"$f":"Lebenshaltung!$C$37","v":0},{"$f":"Lebenshaltung!$C$37","v":0}]
["  + Abschreibungen (siehe oben)",null,{"$f":"C14","v":0},0,0,0,0,0,0,0,0,0,0,0,0]
["  - Tilgung Darlehen 4",null,0,0,0,0,0,0,0,0,0,0,0,0,0]
["Über-/Unterdeckung 5",null,{"$f":"C51-C52+C53-C54","v":0},{"$f":"D51-D52+D53-D54","v":0},0,0,0,0,0,0,0,0,0,0,0]
[]
["4 Bitte beachten Sie: Förderkredite sehen i.d.R. eine mindestens einjährige Tilgungsfreiheit vor, d.h. in diesem Fall tragen Sie bitte erst im zweiten Jahr Ihre monatlichen Tilgungssummen ein"]
["5 Unterdeckung entspricht zusätzlich notwendigen Umsatzerlösen bis zur Gewinnschwelle"]

{"sheet":"Annahmen URP","index":4,"n_rows":29,"n_cols":2,"rows_kept":29}
["Anhang: "]
["Annahmen zur Umsatz- und Rentabilitätsplanung"]
[]
["Umsatzerlöse"]
["z.B.","Welche Kundengruppen werden adressiert, mit wie vielen Produktverkäufen/Dienstleistungsumsätzen wird geplant?"]
[null,"Zu welchem Preis wird welche Produktgruppe verkauft (Markteinführungspreise, Endpreise)?"]
[null,"Zu welchen Stunden-/Tagessätzen werden welche Dienstleistungen verkauft?"]
[]
["Wareneinsatz"]
["z.B.","Höhe der branchenüblichen Wareneinsatzquote?"]
[null,"Eigene Wareneinsatzquote pro Geschäftsfeld?"]
[null,"Grund für evtl. Abweichungen? Ggf. Produktkalkulation beifügen!"]
[]
["Personalkosten"]
["z.B.","Welche Mitarbeiter werden jeweils beschäftigt? Gehaltskosten pro Mitarbeiter? "]
[null,"Gehaltsnebenkosten (Sozialversicherung, Altersvorsorge, etc.)?"]
[null,"www.abgabenrechner.de"]
[]
["Weitere betriebliche Kosten "]
[null,"Ggf. Besonderheiten erläutern"]
[]
["Zinsen"]
[null,"Angabe zu Darlehenshöhe/-laufzeit, Verzinsung, Tilgungsmodalitäten"]
[null,"Bei mehreren Darlehen empfiehlt es sich, einen Bankspiegel beizufügen, bei dem dies übersichtlich dargestellt ist incl. Angaben zur finanzierenden Bank und zur jeweiligen Besicherung der einzelnen Darlehen."]
[]
["Außerordentliche Kosten oder Erträge"]
[null,"Diese sind gesondert zu erläutern. Hierzu zählen z.B. Verkäufe von Grundstücken oder Maschinen, die außerhalb der regulären Geschäftstätigkeit gemacht wurden. "]
[]
["Es wird empfohlen, monatliche Soll-/Ist-Auswertungen und Abgleiche vorzunehmen, sobald die ersten Ist-Zahlen vorliegen"]

{"sheet":"Umsatz-Rentabilität 3J","index":5,"n_rows":34,"n_cols":8,"rows_kept":34}
["Umsatz- und Rentabilitätsplanung (Übersicht Jahr 1-3)"]
["mit Soll-/Ist-Vergleich"]
[]
["Planperiode\nBeträge in € (netto)",null,"Plan Jahr 1\nbzw. Rumpf-GJ","Ist Jahr 1\nbzw. Rumpf-GJ","Abweichung  Jahr 1\n(in Prozent)",null,"Plan Jahr 2","Plan Jahr 3"]
["Umsatzerlöse Geschäftsfeld 1",null,{"v":0,"d":"0 €"},{"v":0,"d":"0 €"},{"$f":"(D5-C5)/C5","v":{"$error":"#DIV/0!"}},null,{"v":0,"d":"0 €"},{"v":0,"d":"0 €"}]
["Umsatzerlöse Geschäftsfeld 2",null,{"v":0,"d":"0 €"},{"v":0,"d":"0 €"},{"$error":"#DIV/0!"},null,{"v":0,"d":"0 €"},{"v":0,"d":"0 €"}]
["Umsatzerlöse Geschäftsfeld 3",null,{"v":0,"d":"0 €"},{"v":0,"d":"0 €"},{"$error":"#DIV/0!"},null,{"v":0,"d":"0 €"},{"v":0,"d":"0 €"}]
["Umsatzerlöse ( Summe )",null,{"$f":"SUM(C5:C7)","v":0},{"$f":"SUM(D5:D7)","v":0},{"$error":"#DIV/0!"},null,{"$f":"SUM(G5:G7)","v":0},{"$f":"SUM(H5:H7)","v":0}]
["Waren-/Materialeinsatz",null,{"v":0,"d":"0 €"},{"v":0,"d":"0 €"},{"$error":"#DIV/0!"},null,{"v":0,"d":"0 €"},{"v":0,"d":"0 €"}]
["Rohertrag ",null,{"$f":"C8-C9","v":0},{"$f":"D8-D9","v":0},{"$error":"#DIV/0!"},null,{"$f":"G8-G9","v":0},{"$f":"H8-H9","v":0}]
["Personalkosten1",null,{"v":0,"d":"0 €"},{"v":0,"d":"0 €"},{"$error":"#DIV/0!"},null,{"v":0,"d":"0 €"},{"v":0,"d":"0 €"}]
["Fremdleistungen",null,{"v":0,"d":"0 €"},{"v":0,"d":"0 €"},{"$error":"#DIV/0!"},null,{"v":0,"d":"0 €"},{"v":0,"d":"0 €"}]
["Abschreibungen",null,{"v":0,"d":"0 €"},{"v":0,"d":"0 €"},{"$error":"#DIV/0!"},null,{"v":0,"d":"0 €"},{"v":0,"d":"0 €"}]
[" Miete einschl. Nebenkosten",null,{"v":0,"d":"0 €"},{"v":0,"d":"0 €"},{"$error":"#DIV/0!"},null,{"v":0,"d":"0 €"},{"v":0,"d":"0 €"}]
["Leasing Maschinen",null,{"v":0,"d":"0 €"},{"v":0,"d":"0 €"},{"$error":"#DIV/0!"},null,{"v":0,"d":"0 €"},{"v":0,"d":"0 €"}]
["Reparaturen, Wartung",null,{"v":0,"d":"0 €"},{"v":0,"d":"0 €"},{"$error":"#DIV/0!"},null,{"v":0,"d":"0 €"},{"v":0,"d":"0 €"}]
["KFZ-Kosten: Leasing, Steuern, Versicherung",null,{"v":0,"d":"0 €"},{"v":0,"d":"0 €"},{"$error":"#DIV/0!"},null,{"v":0,"d":"0 €"},{"v":0,"d":"0 €"}]
["KFZ-Kosten: Benzin, Instandhaltung, Pflege",null,{"v":0,"d":"0 €"},{"v":0,"d":"0 €"},{"$error":"#DIV/0!"},null,{"v":0,"d":"0 €"},{"v":0,"d":"0 €"}]
["Sonstige Reisekosten",null,{"v":0,"d":"0 €"},{"v":0,"d":"0 €"},{"$error":"#DIV/0!"},null,{"v":0,"d":"0 €"},{"v":0,"d":"0 €"}]
["Betriebl. Versicherungen / Beiträge",null,{"v":0,"d":"0 €"},{"v":0,"d":"0 €"},{"$error":"#DIV/0!"},null,{"v":0,"d":"0 €"},{"v":0,"d":"0 €"}]
["Telefon/Fax/Internet/Handy/Porto",null,{"v":0,"d":"0 €"},{"v":0,"d":"0 €"},{"$error":"#DIV/0!"},null,{"v":0,"d":"0 €"},{"v":0,"d":"0 €"}]
["Werbekosten, Internet, Messen, Bewirtung",null,{"v":0,"d":"0 €"},{"v":0,"d":"0 €"},{"$error":"#DIV/0!"},null,{"v":0,"d":"0 €"},{"v":0,"d":"0 €"}]
["Buchführungs- und Steuerberatungskosten",null,{"v":0,"d":"0 €"},{"v":0,"d":"0 €"},{"$error":"#DIV/0!"},null,{"v":0,"d":"0 €"},{"v":0,"d":"0 €"}]
["Rechtsanwalts- und Beratungskosten",null,{"v":0,"d":"0 €"},{"v":0,"d":"0 €"},{"$error":"#DIV/0!"},null,{"v":0,"d":"0 €"},{"v":0,"d":"0 €"}]
["Sonstige Kosten",null,{"v":0,"d":"0 €"},{"v":0,"d":"0 €"},{"$error":"#DIV/0!"},null,{"v":0,"d":"0 €"},{"v":0,"d":"0 €"}]
["Gesamtkosten",null,{"$f":"SUM(C11:C25)","v":0},{"$f":"SUM(D11:D25)","v":0},{"$error":"#DIV/0!"},null,{"$f":"SUM(G11:G25)","v":0},{"$f":"SUM(H11:H25)","v":0}]
["Betriebsergebnis vor Zinsen, Steuern (EBIT)",null,{"$f":"C10-C26","v":0},{"$f":"D10-D26","v":0},{"$error":"#DIV/0!"},null,{"$f":"G10-G26","v":0},{"$f":"H10-H26","v":0}]
["+ Zinserträge",null,{"v":0,"d":"0 €"},{"v":0,"d":"0 €"},{"$error":"#DIV/0!"},null,{"v":0,"d":"0 €"},{"v":0,"d":"0 €"}]
["./. Zinsen und ähnliche Aufwendungen",null,{"v":0,"d":"0 €"},{"v":0,"d":"0 €"},{"$error":"#DIV/0!"},null,{"v":0,"d":"0 €"},{"v":0,"d":"0 €"}]
["+ Außerordentliche Erträge",null,{"v":0,"d":"0 €"},{"v":0,"d":"0 €"},{"$error":"#DIV/0!"},null,{"v":0,"d":"0 €"},{"v":0,"d":"0 €"}]
["./. Außerordentliche Aufwendungen",null,{"v":0,"d":"0 €"},{"v":0,"d":"0 €"},{"$error":"#DIV/0!"},null,{"v":0,"d":"0 €"},{"v":0,"d":"0 €"}]
["   Betriebsergebnis / Gewinn vor Steuern",null,{"$f":"C27+C28-C29+C30-C31","v":{"v":0,"d":"0 €"}},{"$f":"D27+D28-D29+D30-D31","v":{"v":0,"d":"0 €"}},{"$error":"#DIV/0!"},null,{"$f":"G27+G28-G29+G30-G31","v":{"v":0,"d":"0 €"}},{"$f":"H27+H28-H29+H30-H31","v":{"v":0,"d":"0 €"}}]
["Steuern",null,{"v":0,"d":"0 €"},{"v":0,"d":"0 €"},{"$error":"#DIV/0!"},null,{"v":0,"d":"0 €"},{"v":0,"d":"0 €"}]
["Betriebsergebnis / Gewinn nach Steuern",null,{"$f":"C32-C33","v":{"v":0,"d":"0 €"}},{"$f":"D32-D33","v":{"v":0,"d":"0 €"}},{"$error":"#DIV/0!"},null,{"$f":"G32-G33","v":{"v":0,"d":"0 €"}},{"$f":"H32-H33","v":{"v":0,"d":"0 €"}}]

{"sheet":"Liquiditätsplan I-III","index":6,"n_rows":66,"n_cols":15,"rows_kept":66,"merged":[[8,0,8,11]]}
["Liquiditätsplan"]
[]
["Der Liquiditätsplan zeigt, ob das Unternehmen fähig ist, seine Zahlungsverpflichtungen fristgemäß zu erfüllen und weiterarbeiten zu können."]
["Grundlagen hierfür sind der Kapitalbedarfsplan, die Umsatz-/Rentabilitätsplanung und die Berechnung der Lebenshaltungskosten. "]
["Im Liquiditätsplan erfolgt die fortlaufende Planung/Darstellung der konkreten Zahlungsströme: die zu erwartenden Einnahmen und Ausgaben werden den Monaten zugeordnet, in denen sie (voraussichtlich) anfallen."]
["Diese Planung ist von größter Bedeutung: was nützt eine tolle Rentabilität, wenn zuerst anfallende Kosten nicht durch eine entsprechende Finanzierung gedeckt sind?"]
["Bei Zahlungsunfähigkeit müssen Sie Insolvenz anmelden und das Unternehmen schließen!"]
[]
["Hinweise:\nIm Gegensatz zur Umsatz- und Rentabilitätsplanung sind im Liquiditätsplan regelmäßig die Bruttobeträge, also auch die anfallende Umsatzsteuer zu berücksichtigen."]
["In der Mustervorlage wird die Umsatzsteuerthematik (Zahllast oder Erstattung) über entsprechende Rechengrößen behandelt und als liquiditätswirksam berücksichtigt."]
["Öffentliche Förderdarlehen finanzieren i.d.R. nur die Nettoinvestition. Hier ist darauf zu achten, dass die anfallende Steuer für einen gewissen Zeitraum zwischenfinanziert werden muss!"]
["Der \"rechnerische\" Abschreibungsbetrag wird in der Liquiditätsplanung nicht berücksichtigt, dafür wird der Tilgungsbetrag aufgenommen: dies entspricht dem tatsächlichen Geldfluss. "]
[]
["Beträge in €","Jahr 1",{"$nulls":11},"Jahr 2","Jahr 3"]
[null,"Jan","Feb.","Mrz","Apr","Mai","Jun","Jul","Aug","Sep","Okt","Nov","Dez","12 Monate …","12 Monate …"]
["Übertrag Liquiditäts-Endbestand Vormonat",null,{"$f":"B66","v":0},0,0,0,0,0,0,0,0,0,0,0,0]
[]
["Einzahlungen (brutto) aus"]
["Forderungen aus Lieferung u. Leistung (bezahlte Rechnungen)",0,0,0,0,0,0,0,0,0,0,0,0,0,0]
["Barverkäufe",0,0,0,0,0,0,0,0,0,0,0,0,0,0]
["erwartete Kundenanzahlungen",0,0,0,0,0,0,0,0,0,0,0]
["Eigenkapital-Einlagen",0,0,0,0,0,0,0,0,0,0,0,0,0,0]
["Kreditauszahlung",0,0,0,0,0,0,0,0,0,0,0,0,0,0]
["sonstige Einnahmen\n(z.B. Gründungszuschuss)",0,0,0,0,0,0,0,0,0,0,0,0,0,0]
["Summe Liquiditätszugang",{"$f":"SUM(B19:B24)","v":0},0,0,0,0,0,0,0,0,0,0,0,{"$f":"SUM(N19:N24)","v":0},0]
[]
["Rechengröße:\nvereinnahmte Umsatzsteuer (Mehrwertsteuer)",0,0,0,0,0,0,0,0,0,0,0,0,0,0]
[]
["Auszahlungen für Investitionen"]
["Grundstück/Gebäude/Umbaumaßnahmen",0,0,0,0,0,0,0,0,0,0,0,0,0,0]
["Anschaffung Maschinen/Geräte",0,0,0,0,0,0,0,0,0,0,0,0,0,0]
["Büroausstattung, PCs, Firmenfahrzeug",0,0,0,0,0,0,0,0,0,0,0,0,0,0]
["Summe Investitionsausgaben",{"$f":"SUM(B30:B32)","v":0},{"$f":"SUM(C30:C32)","v":0},0,0,0,0,0,0,0,0,0,0,{"$f":"SUM(N30:N32)","v":0},0]
[]
["Auszahlungen für betriebliche Kosten"]
["Ware, Material, Roh-/Hilfs-/Betriebsstoffe",0,0,0,0,0,0,0,0,0,0,0,0,0,0]
["Personalkosten",0,0,0,0,0,0,0,0,0,0,0,0,0,0]
["Fremdleistungen",0,0,0,0,0,0,0,0,0,0,0,0,0,0]
["Miete einschl. Nebenkosten",0,0,0,0,0,0,0,0,0,0,0,0,0,0]
["Leasing Maschinen",0,0,0,0,0,0,0,0,0,0,0,0,0,0]
["Reparaturen, Wartung",0,0,0,0,0,0,0,0,0,0,0,0,0,0]
["KFZ-Kosten: Leasing, Steuern, Versicherung",0,0,0,0,0,0,0,0,0,0,0,0,0,0]
["KFZ-Kosten: Benzin, Instandhaltung, Pflege",0,0,0,0,0,0,0,0,0,0,0,0,0,0]
["Sonstige Reisekosten",0,0,0,0,0,0,0,0,0,0,0,0,0,0]
["Betriebl. Versicherungen / Beiträge",0,0,0,0,0,0,0,0,0,0,0,0,0,0]
["Telefon/Fax/Internet/Handy/Porto",0,0,0,0,0,0,0,0,0,0,0,0,0,0]
["Werbekosten, Internet, Messen, Bewirtung",0,0,0,0,0,0,0,0,0,0,0,0,0,0]
["Buchführungs- und Steuerberatungskosten",0,0,0,0,0,0,0,0,0,0,0,0,0,0]
["Rechtsanwalts- und Beratungskosten",0,0,0,0,0,0,0,0,0,0,0,0,0,0]
["Sonstige Kosten (z.B. Gebühren, Abgaben)",0,0,0,0,0,0,0,0,0,0,0,0,0,0]
["Anzahlungen an Lieferanten",0,0,0,0,0,0,0,0,0,0,0,0,0,0]
["Zinsen für Darlehen und Kontokorrentkredite",{"$f":"Kapitalbedarf!$G$36","v":0},{"$f":"Kapitalbedarf!$G$36","v":0},{"$f":"Kapitalbedarf!$G$36","v":0},{"$f":"Kapitalbedarf!$G$36","v":0},{"$f":"Kapitalbedarf!$G$36","v":0},{"$f":"Kapitalbedarf!$G$36","v":0},{"$f":"Kapitalbedarf!$G$36","v":0},{"$f":"Kapitalbedarf!$G$36","v":0},{"$f":"Kapitalbedarf!$G$36","v":0},{"$f":"Kapitalbedarf!$G$36","v":0},{"$f":"Kapitalbedarf!$G$36","v":0},{"$f":"Kapitalbedarf!$G$36","v":0},{"$f":"Kapitalbedarf!$G$36","v":0},{"$f":"Kapitalbedarf!$G$36","v":0}]
["Tilgungsraten Darlehen",{"$f":"Kapitalbedarf!$G$39","v":0},{"$f":"Kapitalbedarf!$G$39","v":0},{"$f":"Kapitalbedarf!$G$39","v":0},{"$f":"Kapitalbedarf!$G$39","v":0},{"$f":"Kapitalbedarf!$G$39","v":0},{"$f":"Kapitalbedarf!$G$39","v":0},{"$f":"Kapitalbedarf!$G$39","v":0},{"$f":"Kapitalbedarf!$G$39","v":0},{"$f":"Kapitalbedarf!$G$39","v":0},{"$f":"Kapitalbedarf!$G$39","v":0},{"$f":"Kapitalbedarf!$G$39","v":0},{"$f":"Kapitalbedarf!$G$39","v":0},{"$f":"Kapitalbedarf!$G$39","v":0},{"$f":"Kapitalbedarf!$G$39","v":0}]
["Summe betriebliche Kosten",{"$f":"SUM(B36:B53)","v":0},0,0,0,0,0,0,0,0,0,0,0,0,0]
[]
["Rechengröße:\ngezahlte Umsatzsteuer (Vorsteuer)",0,0,0,0,0,0,0,0,0,0,0,0,0,0]
[]
["Betriebliche Steuern"]
["   Umsatzsteuer (Zahllast oder Erstattung)",{"$f":"B27-B56","v":0},0,0,0,0,0,0,0,0,0,0,0,0,0]
["   Steuern (Voraus-, Nachzahlungen für GewSt, KöSt)",0,0,0,0,0,0,0,0,0,0,0,0,0,0]
[]
["Kapitalentnahmen\n(z.B. Privatentnahmen resp. Lebenshaltungskosten)",0,0,0,0,0,0,0,0,0,0,0,0,0,0]
[]
["Summe Liquiditätsabgang",{"$f":"B33+B54+B59+B60+B62","v":0},0,0,0,0,0,0,0,0,0,0,0,0,0]
[]
["Liquiditätssaldo (Endbestand Monat)\n(Vormonat plus Liqu.Zugang minus Liqu.Abgang)",{"$f":"B25-B64","v":0},{"$f":"C16+C25-C64","v":0},0,0,0,0,0,0,0,0,0,0,0,0]